[Event "ESP-chT 1st Division 2020"]
[Site "Padron"]
[Date "2020.10.09"]
[Round "7.15"]
[White "Garrido Outon, Alex"]
[Black "Larino Nieto, David"]
[Result "1/2-1/2"]
[ECO "B12"]
[WhiteElo "2366"]
[BlackElo "2477"]
[Annotator "ChessBase"]
[PlyCount "162"]
[EventDate "2020.10.01"]
[EventType "team-tourn"]
[EventCountry "ESP"]
[SourceTitle "playchess.com"]
[Source "ChessBase"]
[SourceQuality "1"]
[TimeControl "5400+30"]

1. e4 {[%emt 0:00:00]} c6 {[%emt 0:01:22]} 2. d4 {[%emt 0:00:00]} d5 {[%emt 0:00:17]} 3. e5 {[%emt 0:00:24]} g6 {[%emt 0:00:40]} 4. Nc3 {[%emt 0:01:03]} Nh6 {[%emt 0:00:08]} 5. Be3 {[%emt 0:02:47]} Nf5 {[%emt 0:00:39]} 6. Qd2 {[%emt 0:01:46]} Nxe3 {[%emt 0:02:44]} 7. Qxe3 {[%emt 0:00:13]} Bf5 {[%emt 0:00:52]} 8. Bd3 {[%emt 0:09:37]} Bxd3 {[%emt 0:00:02]} 9. Qxd3 {[%emt 0:00:11]} e6 {[%emt 0:00:10]} 10. Nf3 {[%emt 0:04:28]} c5 {[%emt 0:12:56]} 11. dxc5 {[%emt 0:07:15]} Bxc5 {[%emt 0:00:38]} 12. O-O {[%emt 0:07:41]} Nc6 {[%emt 0:00:24]} 13. Rad1 {[%emt 0:02:18]} O-O {[%emt 0:01:43]} 14. a3 {[%emt 0:02:42]} a6 {[%emt 0:03:22]} 15. Na4 {[%emt 0:05:30]} Be7 {[%emt 0:04:01]} 16. c4 {[%emt 0:01:19]} dxc4 {[%emt 0:01:26]} 17. Qxc4 {[%emt 0:02:30]} Qa5 {[%emt 0:00:11]} 18. Qf4 {[%emt 0:02:55]} Rfd8 {[%emt 0:02:29]} 19. Nc3 {[%emt 0:02:37]} Rxd1 {[%emt 0:00:13]} 20. Rxd1 {[%emt 0:00:22]} Rd8 {[%emt 0:00:08]} 21. Rxd8+ {[%emt 0:07:02]} Qxd8 {[%emt 0:00:02]} 22. h4 {[%emt 0:02:59]} Qd3 {[%emt 0:02:17]} 23. Qe4 {[%emt 0:06:34]} Qxe4 {[%emt 0:15:55]} 24. Nxe4 {[%emt 0:00:02]} h5 {[%emt 0:00:15]} 25. Kh2 {[%emt 0:04:34]} Bd8 {[%emt 0:04:33]} 26. Kg3 {[%emt 0:01:21]} b5 {[%emt 0:06:25]} 27. Nc5 {[%emt 0:02:28]} a5 {[%emt 0:01:25]} 28. Nd3 {[%emt 0:01:58]} Bc7 {[%emt 0:00:31]} 29. Kf4 {[%emt 0:01:05]} a4 {[%emt 0:04:50]} 30. Ke4 {[%emt 0:01:25]} Bb6 {[%emt 0:00:01]} 31. Nd2 {[%emt 0:04:26]} Kf8 {[%emt 0:00:47]} 32. b3 {[%emt 0:02:02]} Ba5 {[%emt 0:01:09]} 33. b4 {[%emt 0:01:02]} Bb6 {[%emt 0:00:04]} 34. Nb1 {[%emt 0:01:20]} Bd4 {[%emt 0:00:17]} 35. f4 {[%emt 0:01:17]} Ke8 {[%emt 0:00:51]} 36. Ne1 {[%emt 0:02:06]} Kd7 {[%emt 0:01:53]} 37. Kd3 {[%emt 0:02:11]} Ba1 {[%emt 0:05:01]} 38. Nc3 {[%emt 0:05:04]} Bxc3 {[%emt 0:03:57]} 39. Kxc3 {[%emt 0:00:02]} Ne7 {[%emt 0:00:14]} 40. Kd3 {[%emt 0:01:17]} Nd5 {[%emt 0:00:35]} 41. g3 {[%emt 0:02:14]} Ne7 {[%emt 0:00:58]} 42. Nc2 {[%emt 0:00:31]} Nf5 {[%emt 0:04:43]} 43. Nd4 {[%emt 0:00:02]} Nxg3 {[%emt 0:00:09]} 44. Nxb5 {[%emt 0:00:11]} Nf5 {[%emt 0:00:01]} 45. Nc3 {[%emt 0:00:39]} Nxh4 {[%emt 0:00:04]} 46. Nxa4 {[%emt 0:00:04]} Ng2 {[%emt 0:00:13]} 47. Ke4 {[%emt 0:01:28]} Ne1 {[%emt 0:00:27]} 48. Nc5+ {[%emt 0:00:54]} Kc6 {[%emt 0:00:15]} 49. Nd3 {[%emt 0:00:20]} Nc2 {[%emt 0:03:32]} 50. a4 {[%emt 0:00:06]} Kb6 {[%emt 0:00:06]} 51. Kf3 {[%emt 0:01:06]} Nd4+ {[%emt 0:01:07]} 52. Ke4 {[%emt 0:00:25]} Ne2 {[%emt 0:01:11]} 53. Nc5 {[%emt 0:01:27]} Nc3+ {[%emt 0:02:59]} 54. Kf3 {[%emt 0:00:15]} Nd5 {[%emt 0:00:23]} 55. Nd3 {[%emt 0:00:17]} Ne7 {[%emt 0:00:42]} 56. Nb2 {[%emt 0:00:38]} Nd5 {[%emt 0:02:29]} 57. Nc4+ {[%emt 0:00:28]} Kc6 {[%emt 0:00:01]} 58. b5+ {[%emt 0:00:49]} Kc5 {[%emt 0:00:29]} 59. Nd6 {[%emt 0:00:07]} f5 {[%emt 0:07:18]} 60. a5 {[%emt 0:00:24]} h4 {[%emt 0:02:25]} 61. a6 {[%emt 0:00:36]} Kb6 {[%emt 0:00:29]} 62. Nc8+ {[%emt 0:01:31]} Kxb5 {[%emt 0:01:22]} 63. a7 {[%emt 0:00:14]} Nc7 {[%emt 0:00:02]} 64. Nd6+ {[%emt 0:00:02]} Kb6 {[%emt 0:01:18]} 65. Ne8 {[%emt 0:00:01]} Na8 {[%emt 0:00:10]} 66. Ng7 {[%emt 0:00:57]} Kxa7 {[%emt 0:00:35]} 67. Nxe6 {[%emt 0:00:05]} Kb7 {[%emt 0:01:08]} 68. Nf8 {[%emt 0:01:09]} Kc6 {[%emt 0:00:18]} 69. Nxg6 {[%emt 0:00:31]} Kd5 {[%emt 0:00:37]} 70. Nxh4 {[%emt 0:00:06]} Ke6 {[%emt 0:00:03]} 71. Kg3 {[%emt 0:00:23]} Nc7 {[%emt 0:01:29]} 72. Ng6 {[%emt 0:00:28]} Nd5 {[%emt 0:00:36]} 73. Kf3 {[%emt 0:00:55]} Nb4 {[%emt 0:00:27]} 74. Nf8+ {[%emt 0:00:38]} Ke7 {[%emt 0:00:28]} 75. Nh7 {[%emt 0:00:09]} Nd5 {[%emt 0:00:48]} 76. Ng5 {[%emt 0:00:03]} Nb4 {[%emt 0:01:10]} 77. Kg3 {[%emt 0:00:20]} Nd3 {[%emt 0:00:29]} 78. Nf3 {[%emt 0:00:09]} Ke6 {[%emt 0:00:43]} 79. Nd4+ {[%emt 0:01:18]} Kd5 {[%emt 0:00:11]} 80. Nxf5 {[%emt 0:00:03]} Nxe5 {[%emt 0:00:09]} 81. fxe5 {[%emt 0:00:03]} Kxe5 1/2-1/2

[Event "ESP-chT 1st Division 2020"]
[Site "Padron"]
[Date "2020.10.09"]
[Round "7.16"]
[White "Gomez Dieguez, David"]
[Black "Herrera Delgado, Alejandro"]
[Result "1-0"]
[ECO "B35"]
[WhiteElo "2261"]
[BlackElo "2280"]
[Annotator "ChessBase"]
[PlyCount "91"]
[EventDate "2020.10.01"]
[EventType "team-tourn"]
[EventCountry "ESP"]
[SourceTitle "playchess.com"]
[Source "ChessBase"]
[SourceQuality "1"]
[TimeControl "5400+30"]

1. e4 c5 {[%emt 0:09:29]} 2. Nc3 {[%emt 0:00:00]} Nc6 {[%emt 0:00:27]} 3. Nge2 {[%emt 0:00:00]} g6 {[%emt 0:00:24]} 4. d4 {[%emt 0:00:00]} cxd4 {[%emt 0:00:11]} 5. Nxd4 {[%emt 0:00:00]} Bg7 {[%emt 0:00:24]} 6. Be3 {[%emt 0:00:00]} Nf6 {[%emt 0:00:32]} 7. Bc4 {[%emt 0:00:00]} O-O {[%emt 0:00:28]} 8. Bb3 {[%emt 0:00:00]} d6 {[%emt 0:00:54]} 9. f3 {[%emt 0:00:01]} Bd7 {[%emt 0:00:15]} 10. h4 {[%emt 0:00:03]} Rc8 {[%emt 0:31:22]} 11. Qd2 {[%emt 0:00:14]} Nxd4 {[%emt 0:00:40]} 12. Bxd4 {[%emt 0:00:04]} b5 {[%emt 0:00:13]} 13. h5 {[%emt 0:00:18]} b4 {[%emt 0:04:01]} 14. Nd5 {[%emt 0:11:54]} Nxd5 {[%emt 0:12:33]} 15. Bxd5 {[%emt 0:12:59]} Rxc2 {[%emt 0:01:55]} 16. Qxc2 {[%emt 0:02:15]} Bxd4 {[%emt 0:00:05]} 17. hxg6 {[%emt 0:00:12]} hxg6 {[%emt 0:02:03]} 18. O-O-O {[%emt 0:04:57]} Bg7 {[%emt 0:00:20]} 19. g4 {[%emt 0:02:44]} Qb8 {[%emt 0:08:16]} 20. Qh2 {[%emt 0:02:27]} Rd8 {[%emt 0:00:29]} 21. f4 {[%emt 0:18:01]} Bxg4 {[%emt 0:02:34]} 22. Rdg1 {[%emt 0:09:02]} Kf8 {[%emt 0:09:50]} 23. f5 {[%emt 0:04:42]} gxf5 {[%emt 0:01:07]} 24. Kb1 {[%emt 0:08:59]} e6 {[%emt 0:01:05]} 25. Bb3 {[%emt 0:00:09]} d5 {[%emt 0:08:09]} 26. Qxb8 {[%emt 0:00:37]} Rxb8 {[%emt 0:00:04]} 27. exd5 {[%emt 0:00:08]} exd5 {[%emt 0:01:55]} 28. Bd1 {[%emt 0:00:20]} Bxd1 {[%emt 0:03:37]} 29. Rxd1 {[%emt 0:00:03]} d4 {[%emt 0:00:03]} 30. Rh5 {[%emt 0:00:25]} Rb5 {[%emt 0:01:00]} 31. Rf1 {[%emt 0:00:15]} Be5 {[%emt 0:00:33]} 32. Rfxf5 {[%emt 0:01:56]} f6 {[%emt 0:00:08]} 33. Rxf6+ {[%emt 0:01:32]} Bxf6 {[%emt 0:00:06]} 34. Rxb5 {[%emt 0:00:03]} Ke7 {[%emt 0:00:20]} 35. Rxb4 {[%emt 0:00:20]} Kd6 {[%emt 0:00:48]} 36. Ra4 {[%emt 0:01:41]} Kc5 {[%emt 0:00:58]} 37. Rxa7 {[%emt 0:01:09]} Kb6 {[%emt 0:00:31]} 38. Rf7 {[%emt 0:00:19]} Be5 {[%emt 0:00:10]} 39. b3 {[%emt 0:00:19]} Bh8 {[%emt 0:01:00]} 40. Kc2 {[%emt 0:00:09]} Kc5 {[%emt 0:00:10]} 41. Kd3 {[%emt 0:00:05]} Kb4 {[%emt 0:00:05]} 42. Rd7 {[%emt 0:00:18]} Ka3 {[%emt 0:00:11]} 43. Rxd4 {[%emt 0:00:26]} Kxa2 {[%emt 0:00:39]} 44. b4 {[%emt 0:00:05]} Kb3 {[%emt 0:00:17]} 45. b5 {[%emt 0:00:05]} Bxd4 {[%emt 0:00:10]} 46. Kxd4 {[%emt 0:00:03]} 1-0

[Event "ESP-chT 1st Division 2020"]
[Site "Padron"]
[Date "2020.10.09"]
[Round "7.17"]
[White "Perera Borrego, Maria Adela"]
[Black "Hernandez Estevez, Yudania"]
[Result "0-1"]
[ECO "D11"]
[WhiteElo "2221"]
[BlackElo "2197"]
[Annotator "ChessBase"]
[PlyCount "150"]
[EventDate "2020.10.01"]
[EventType "team-tourn"]
[EventCountry "ESP"]
[SourceTitle "playchess.com"]
[Source "ChessBase"]
[SourceQuality "1"]
[TimeControl "5400+30"]

1. d4 {[%emt 0:00:00]} d5 {[%emt 0:00:00]} 2. c4 {[%emt 0:00:07]} c6 {[%emt 0:00:00]} 3. Nf3 {[%emt 0:00:05]} Nf6 {[%emt 0:00:00]} 4. Qc2 {[%emt 0:00:18]} a6 {[%emt 0:01:57]} 5. Nbd2 {[%emt 0:02:25]} g6 {[%emt 0:01:54]} 6. e3 {[%emt 0:01:35]} Bg7 {[%emt 0:00:51]} 7. Bd3 {[%emt 0:01:41]} O-O {[%emt 0:01:18]} 8. O-O {[%emt 0:00:15]} a5 {[%emt 0:00:21]} 9. b3 {[%emt 0:03:10]} a4 {[%emt 0:01:08]} 10. b4 {[%emt 0:02:50]} Nbd7 {[%emt 0:08:08]} 11. h3 {[%emt 0:08:58]} Ne8 {[%emt 0:05:34]} 12. Bb2 {[%emt 0:01:34]} Nd6 {[%emt 0:02:03]} 13. a3 {[%emt 0:09:34]} dxc4 {[%emt 0:27:20]} 14. Nxc4 {[%emt 0:00:23]} Nxc4 {[%emt 0:00:17]} 15. Bxc4 {[%emt 0:01:26]} Qc7 {[%emt 0:01:01]} 16. Be2 {[%emt 0:07:43]} Qb8 {[%emt 0:08:45]} 17. Rfd1 {[%emt 0:04:38]} Nf6 {[%emt 0:02:10]} 18. Ne5 {[%emt 0:08:47]} Be6 {[%emt 0:01:35]} 19. Bc4 {[%emt 0:00:40]} Bd5 {[%emt 0:00:53]} 20. Rac1 {[%emt 0:01:51]} Rd8 {[%emt 0:02:45]} 21. Nd3 {[%emt 0:03:34]} e6 {[%emt 0:06:06]} 22. Nc5 {[%emt 0:04:23]} Qa7 {[%emt 0:08:25]} 23. Re1 {[%emt 0:09:21]} b6 {[%emt 0:00:54]} 24. Nd3 {[%emt 0:01:04]} b5 {[%emt 0:00:40]} 25. Bxd5 {[%emt 0:00:47]} cxd5 {[%emt 0:00:05]} 26. Qc6 {[%emt 0:04:27]} Rab8 {[%emt 0:02:04]} 27. Ne5 {[%emt 0:03:36]} Qb7 {[%emt 0:02:36]} 28. f3 {[%emt 0:10:39]} Ne8 {[%emt 0:00:26]} 29. Qxb7 {[%emt 0:03:53]} Rxb7 30. Rc6 {[%emt 0:02:35]} Nd6 {[%emt 0:00:55]} 31. Bc1 {[%emt 0:02:19]} Bxe5 {[%emt 0:01:59]} 32. dxe5 {[%emt 0:00:02]} Nc4 {[%emt 0:00:09]} 33. f4 {[%emt 0:00:27]} Kf8 {[%emt 0:00:31]} 34. Rd1 {[%emt 0:00:47]} Ke7 {[%emt 0:00:38]} 35. Rd3 {[%emt 0:00:47]} Kd7 {[%emt 0:01:02]} 36. Rc5 {[%emt 0:00:43]} Rc8 {[%emt 0:01:36]} 37. Rxc8 {[%emt 0:00:14]} Kxc8 {[%emt 0:00:06]} 38. Bd2 {[%emt 0:00:29]} Rc7 {[%emt 0:01:13]} 39. Be1 {[%emt 0:00:31]} Kb7 {[%emt 0:01:32]} 40. Bh4 {[%emt 0:00:47]} Nb2 {[%emt 0:00:43]} 41. Rd2 {[%emt 0:00:05]} Rc1+ {[%emt 0:00:18]} 42. Kf2 {[%emt 0:00:47]} Nc4 {[%emt 0:00:25]} 43. Rd3 {[%emt 0:00:23]} Ra1 {[%emt 0:00:40]} 44. e4 {[%emt 0:00:08]} Rxa3 {[%emt 0:01:42]} 45. Rd1 {[%emt 0:00:02]} Ra2+ {[%emt 0:01:13]} 46. Kf3 {[%emt 0:00:37]} Nd2+ {[%emt 0:00:16]} 47. Ke3 {[%emt 0:01:09]} Nxe4 {[%emt 0:00:10]} 48. Rc1 {[%emt 0:00:10]} Ra3+ {[%emt 0:03:13]} 49. Kd4 {[%emt 0:00:49]} Nd2 {[%emt 0:00:22]} 50. Rc2 {[%emt 0:00:35]} Nb3+ {[%emt 0:00:11]} 51. Kd3 {[%emt 0:00:28]} Na5+ {[%emt 0:01:46]} 52. Kd4 {[%emt 0:00:17]} Nc4 {[%emt 0:03:31]} 53. Kc5 {[%emt 0:00:12]} Ra1 {[%emt 0:00:54]} 54. Be7 {[%emt 0:00:41]} Rb1 {[%emt 0:00:41]} 55. Ra2 {[%emt 0:00:42]} Ka6 {[%emt 0:01:23]} 56. g4 {[%emt 0:00:23]} a3 {[%emt 0:00:33]} 57. f5 {[%emt 0:00:23]} Rb2 {[%emt 0:00:09]} 58. Ra1 {[%emt 0:00:02]} gxf5 {[%emt 0:01:03]} 59. gxf5 {[%emt 0:00:01]} a2 {[%emt 0:00:27]} 60. Bg5 {[%emt 0:00:54]} Na3 {[%emt 0:00:38]} 61. Bc1 {[%emt 0:00:33]} Rc2+ {[%emt 0:00:05]} 62. Kd6 {[%emt 0:00:07]} Nc4+ {[%emt 0:00:40]} 63. Ke7 {[%emt 0:00:17]} exf5 {[%emt 0:00:30]} 64. Bf4 {[%emt 0:00:38]} Rf2 {[%emt 0:00:35]} 65. Bg3 {[%emt 0:00:28]} Rg2 {[%emt 0:00:31]} 66. Bf4 {[%emt 0:00:02]} Rf2 {[%emt 0:00:37]} 67. Bg3 {[%emt 0:00:03]} Re2 {[%emt 0:00:29]} 68. Kf6 {[%emt 0:00:36]} Kb7 {[%emt 0:00:16]} 69. h4 {[%emt 0:00:38]} d4 {[%emt 0:00:08]} 70. Kxf7 {[%emt 0:01:03]} f4 {[%emt 0:00:25]} 71. Be1 {[%emt 0:01:43]} Nxe5+ {[%emt 0:00:06]} 72. Kg7 {[%emt 0:00:05]} h5 {[%emt 0:00:24]} 73. Kh6 {[%emt 0:00:10]} Nf3 {[%emt 0:00:47]} 74. Kxh5 {[%emt 0:00:21]} Nxe1 {[%emt 0:00:05]} 75. Kg6 {[%emt 0:00:39]} f3 {[%emt 0:00:09]} 0-1

[Event "ESP-chT 1st Division 2020"]
[Site "Padron"]
[Date "2020.10.09"]
[Round "7.18"]
[White "Gomez Carreno, Martin"]
[Black "Chacon Perez, Juan"]
[Result "1-0"]
[ECO "B23"]
[WhiteElo "2051"]
[BlackElo "2141"]
[Annotator "ChessBase"]
[PlyCount "57"]
[EventDate "2020.10.01"]
[EventType "team-tourn"]
[EventCountry "ESP"]
[SourceTitle "playchess.com"]
[Source "ChessBase"]
[SourceQuality "1"]
[TimeControl "5400+30"]

1. e4 {[%emt 0:00:00]} c5 {[%emt 0:00:07]} 2. Nc3 {[%emt 0:00:00]} d6 {[%emt 0:00:57]} 3. d4 {[%emt 0:02:03]} cxd4 {[%emt 0:00:18]} 4. Qxd4 {[%emt 0:00:06]} Bd7 {[%emt 0:00:10]} 5. b3 {[%emt 0:01:17]} Nc6 {[%emt 0:00:55]} 6. Qd2 {[%emt 0:00:44]} g6 {[%emt 0:03:08]} 7. Bb2 {[%emt 0:00:23]} Bg7 {[%emt 0:00:16]} 8. O-O-O {[%emt 0:04:59]} Nf6 {[%emt 0:07:01]} 9. Nd5 {[%emt 0:05:27]} Nh5 {[%emt 0:14:26]} 10. Be2 {[%emt 0:08:05]} Bxb2+ {[%emt 0:00:58]} 11. Kxb2 {[%emt 0:00:02]} Ng7 {[%emt 0:00:08]} 12. h4 {[%emt 0:02:22]} h5 {[%emt 0:04:44]} 13. Nh3 {[%emt 0:07:37]} Rc8 {[%emt 0:04:07]} 14. Ng5 {[%emt 0:19:36]} Qa5 {[%emt 0:07:34]} 15. Qxa5 {[%emt 0:04:04]} Nxa5 {[%emt 0:00:06]} 16. Rhe1 {[%emt 0:00:49]} f6 {[%emt 0:04:16]} 17. Nf3 {[%emt 0:03:23]} Kf7 {[%emt 0:01:40]} 18. Nf4 {[%emt 0:05:30]} Bg4 {[%emt 0:02:35]} 19. Rd5 {[%emt 0:03:22]} Nc6 {[%emt 0:06:50]} 20. Bc4 {[%emt 0:01:16]} Ne6 {[%emt 0:10:28]} 21. Rb5 {[%emt 0:01:22]} b6 {[%emt 0:13:15]} 22. Bd5 {[%emt 0:06:23]} Rc7 {[%emt 0:09:02]} 23. c3 {[%emt 0:02:08]} Rb8 {[%emt 0:00:11]} 24. Nh2 {[%emt 0:01:17]} g5 {[%emt 0:05:29]} 25. hxg5 {[%emt 0:03:52]} fxg5 {[%emt 0:00:04]} 26. Nxg4 {[%emt 0:01:59]} gxf4 {[%emt 0:00:13]} 27. e5 {[%emt 0:01:57]} hxg4 {[%emt 0:01:11]} 28. exd6 {[%emt 0:00:24]} Ncd8 {[%emt 0:00:08]} 29. dxc7 {[%emt 0:00:10]} 1-0

[Event "ESP-chT 1st Division 2020"]
[Site "Padron"]
[Date "2020.10.09"]
[Round "7.19"]
[White "Espinosa Aranda, Angel"]
[Black "Del Rio De Angelis, Salvador G."]
[Result "1/2-1/2"]
[ECO "B01"]
[WhiteElo "2502"]
[BlackElo "2508"]
[Annotator "ChessBase"]
[PlyCount "44"]
[EventDate "2020.10.01"]
[EventType "team-tourn"]
[EventCountry "ESP"]
[SourceTitle "playchess.com"]
[Source "ChessBase"]
[SourceQuality "1"]
[TimeControl "5400+30"]

1. e4 {[%emt 0:00:00]} d5 {[%emt 0:00:00]} 2. exd5 {[%emt 0:00:00]} Nf6 {[%emt 0:00:00]} 3. Nf3 {[%emt 0:02:28]} Nxd5 {[%emt 0:00:00]} 4. d4 {[%emt 0:00:12]} g6 {[%emt 0:00:05]} 5. c4 {[%emt 0:02:16]} Nb6 {[%emt 0:00:07]} 6. Nc3 {[%emt 0:00:26]} Bg7 {[%emt 0:00:10]} 7. c5 {[%emt 0:00:29]} Nd5 {[%emt 0:00:07]} 8. Bc4 {[%emt 0:00:05]} c6 {[%emt 0:00:10]} 9. Qb3 {[%emt 0:00:54]} O-O {[%emt 0:00:11]} 10. Nxd5 {[%emt 0:02:20]} cxd5 {[%emt 0:00:07]} 11. Bxd5 {[%emt 0:00:02]} Nc6 {[%emt 0:00:06]} 12. Bxc6 {[%emt 0:00:49]} bxc6 {[%emt 0:00:06]} 13. O-O {[%emt 0:00:37]} Be6 {[%emt 0:00:24]} 14. Qc3 {[%emt 0:02:50]} Bd5 {[%emt 0:01:50]} 15. Ne5 {[%emt 0:02:33]} a5 {[%emt 0:02:20]} 16. Be3 {[%emt 0:01:45]} Qc8 {[%emt 0:00:10]} 17. Nc4 {[%emt 0:14:37]} Bxg2 {[%emt 0:00:15]} 18. Kxg2 {[%emt 0:00:30]} Qg4+ {[%emt 0:00:05]} 19. Kh1 {[%emt 0:00:02]} Qf3+ {[%emt 0:00:08]} 20. Kg1 {[%emt 0:00:02]} Qg4+ {[%emt 0:00:07]} 21. Kh1 {[%emt 0:00:03]} Qf3+ {[%emt 0:00:05]} 22. Kg1 {[%emt 0:00:01]} Qg4+ 1/2-1/2

[Event "ESP-chT 1st Division 2020"]
[Site "Padron"]
[Date "2020.10.09"]
[Round "7.20"]
[White "Demuth, Adrien"]
[Black "Plazuelo Pascual, Juan"]
[Result "1/2-1/2"]
[ECO "D00"]
[WhiteElo "2488"]
[BlackElo "2474"]
[Annotator "ChessBase"]
[PlyCount "35"]
[EventDate "2020.10.01"]
[EventType "team-tourn"]
[EventCountry "ESP"]
[SourceTitle "playchess.com"]
[Source "ChessBase"]
[SourceQuality "1"]
[TimeControl "5400+30"]

1. d4 {[%emt 0:00:00]} d5 {[%emt 0:00:00]} 2. Bf4 {[%emt 0:00:00]} c5 {[%emt 0:00:41]} 3. e3 {[%emt 0:00:00]} cxd4 {[%emt 0:00:15]} 4. exd4 {[%emt 0:00:00]} Nc6 {[%emt 0:00:22]} 5. c3 {[%emt 0:00:01]} f6 {[%emt 0:00:52]} 6. Nf3 {[%emt 0:00:14]} Bf5 {[%emt 0:06:40]} 7. Bd3 {[%emt 0:14:54]} Bxd3 {[%emt 0:02:28]} 8. Qxd3 {[%emt 0:00:11]} e6 {[%emt 0:04:45]} 9. O-O {[%emt 0:19:32]} Bd6 {[%emt 0:13:49]} 10. Qe3 {[%emt 0:00:49]} Bxf4 {[%emt 0:05:06]} 11. Qxf4 {[%emt 0:00:05]} Nge7 {[%emt 0:00:14]} 12. Re1 {[%emt 0:00:15]} Qd7 {[%emt 0:02:36]} 13. Nbd2 {[%emt 0:00:52]} O-O {[%emt 0:02:50]} 14. Qe3 {[%emt 0:02:42]} Kf7 {[%emt 0:02:42]} 15. Qd3 {[%emt 0:02:59]} Kg8 {[%emt 0:03:49]} 16. Qe3 {[%emt 0:00:06]} Kf7 {[%emt 0:00:04]} 17. Qd3 {[%emt 0:02:07]} Kg8 {[%emt 0:01:34]} 18. Qe3 1/2-1/2

[Event "ESP-chT 1st Division 2020"]
[Site "Padron"]
[Date "2020.10.09"]
[Round "7.21"]
[White "Almagro Llamas, Pablo"]
[Black "Narciso Dublan, Marc"]
[Result "1/2-1/2"]
[ECO "D12"]
[WhiteElo "2429"]
[BlackElo "2477"]
[Annotator "ChessBase"]
[PlyCount "88"]
[EventDate "2020.10.01"]
[EventType "team-tourn"]
[EventCountry "ESP"]
[SourceTitle "playchess.com"]
[Source "ChessBase"]
[SourceQuality "1"]
[TimeControl "5400+30"]

1. d4 {[%emt 0:00:00]} d5 {[%emt 0:00:00]} 2. c4 {[%emt 0:00:29]} c6 {[%emt 0:00:00]} 3. Nf3 {[%emt 0:00:38]} Nf6 {[%emt 0:00:15]} 4. e3 {[%emt 0:00:44]} Bf5 {[%emt 0:00:32]} 5. Nc3 {[%emt 0:00:25]} e6 {[%emt 0:00:18]} 6. Bd3 {[%emt 0:00:50]} Bg6 {[%emt 0:00:37]} 7. O-O {[%emt 0:00:28]} Nbd7 {[%emt 0:00:16]} 8. b3 {[%emt 0:01:10]} Bb4 {[%emt 0:05:52]} 9. Bb2 {[%emt 0:07:57]} Bh5 {[%emt 0:03:57]} 10. Ne2 {[%emt 0:20:51]} Bxf3 {[%emt 0:02:40]} 11. gxf3 {[%emt 0:00:19]} O-O {[%emt 0:06:29]} 12. Kh1 {[%emt 0:03:44]} Re8 {[%emt 0:03:05]} 13. Rg1 {[%emt 0:04:35]} Bf8 {[%emt 0:02:34]} 14. f4 {[%emt 0:08:06]} g6 {[%emt 0:03:19]} 15. c5 {[%emt 0:05:12]} b6 {[%emt 0:16:12]} 16. b4 {[%emt 0:00:15]} Qc7 {[%emt 0:02:16]} 17. Qc2 {[%emt 0:01:42]} Bg7 {[%emt 0:01:38]} 18. Bc3 {[%emt 0:08:02]} Ne4 {[%emt 0:06:13]} 19. Bxe4 {[%emt 0:02:12]} dxe4 {[%emt 0:00:03]} 20. Qxe4 {[%emt 0:00:59]} Nf6 {[%emt 0:00:18]} 21. Qc2 {[%emt 0:02:04]} Nd5 {[%emt 0:01:32]} 22. Bd2 {[%emt 0:01:37]} Red8 {[%emt 0:03:03]} 23. Nc1 {[%emt 0:10:13]} bxc5 {[%emt 0:09:57]} 24. bxc5 {[%emt 0:00:21]} Ne7 {[%emt 0:01:11]} 25. Nd3 {[%emt 0:03:28]} Rab8 {[%emt 0:03:51]} 26. Rab1 {[%emt 0:01:50]} Rxb1 {[%emt 0:08:55]} 27. Rxb1 {[%emt 0:00:31]} Rb8 {[%emt 0:00:04]} 28. Rxb8+ {[%emt 0:03:27]} Qxb8 {[%emt 0:00:03]} 29. Qb3 {[%emt 0:04:40]} Qd8 {[%emt 0:06:05]} 30. Kg2 {[%emt 0:01:16]} Nf5 {[%emt 0:00:41]} 31. Kf1 {[%emt 0:02:13]} h5 {[%emt 0:02:24]} 32. h3 {[%emt 0:02:39]} Qc8 {[%emt 0:05:13]} 33. Ke2 {[%emt 0:01:42]} Qa6 {[%emt 0:01:29]} 34. Kd1 {[%emt 0:00:58]} Kh7 {[%emt 0:01:19]} 35. Be1 {[%emt 0:00:37]} Nh4 {[%emt 0:02:54]} 36. Ke2 {[%emt 0:00:34]} Nf5 {[%emt 0:00:10]} 37. Kd1 {[%emt 0:00:41]} Nh4 {[%emt 0:00:05]} 38. Ke2 {[%emt 0:00:32]} Nf5 {[%emt 0:00:10]} 39. Bc3 {[%emt 0:00:45]} Bf6 {[%emt 0:01:00]} 40. f3 {[%emt 0:00:40]} Ng3+ {[%emt 0:00:47]} 41. Kd2 {[%emt 0:00:13]} Nf1+ {[%emt 0:00:14]} 42. Ke2 {[%emt 0:00:11]} Ng3+ {[%emt 0:00:59]} 43. Kd2 {[%emt 0:00:06]} Nf1+ {[%emt 0:00:38]} 44. Ke2 {[%emt 0:00:08]} Ng3+ 1/2-1/2